bitfinex/quotes_SOLUSD_20251018
["timestamp","ask_amount","ask_price","bid_price","bid_amount"]
[1760778463156,1.99540011,186.15,186.12,5.37287771]
[1760778463362,1.99540011,186.14,186.12,5.37287771]
[1760778463568,1.99540011,186.15,186.12,5.37287771]
[1760778464860,1.99540011,186.14,186.12,5.37287771]
[1760778465062,1.99540011,186.13,186.12,5.37287771]
[1760778465254,0.69,186.15,186.12,5.37287771]
[1760778465255,1.99540011,186.14,186.12,5.37287771]
[1760778467270,1.99540011,186.14,186.11,18.80608241]
[1760778468560,2.68540011,186.15,186.11,19.51608241]
[1760778470374,0.69,186.15,186.11,19.51608241]
[1760778470556,2.68540011,186.15,186.11,81.51608241]
[1760778470756,2.68540011,186.15,186.11,82.05305267]
[1760778471451,3.81257696,186.15,186.11,82.05305267]
[1760778471652,3.81257696,186.15,186.11,81.51608241]
[1760778472070,3.12257696,186.14,186.11,80.80608241]
[1760778472276,3.12257696,186.14,186.11,81.51608241]
[1760778472478,3.12257696,186.14,186.11,80.80608241]
[1760778472671,3.12257696,186.14,186.11,19.51608241]
[1760778473151,3.12257696,186.14,186.11,18.80608241]
[1760778473678,3.12257696,186.15,186.13,5.37258905]
[1760778473857,3.81257696,186.15,186.13,5.37258905]
[1760778474474,3.12257696,186.15,186.13,5.37258905]
[1760778474850,3.81257696,186.15,186.12,5.37287771]
[1760778475464,3.12257696,186.14,186.12,5.37287771]
[1760778477064,3.81257696,186.15,186.12,5.37287771]
[1760778477574,3.81257696,186.14,186.12,5.37287771]
[1760778478071,0.69,186.14,186.12,5.37287771]
[1760778478277,3.12257696,186.15,186.12,5.37287771]
[1760778478464,3.81257696,186.15,186.12,5.37287771]
[1760778479582,3.12257696,186.14,186.12,5.37287771]
[1760778481771,3.81257696,186.13,186.09,5.37374388]
[1760778481964,22.88,186.16,186.09,5.37374388]
[1760778481965,3.12257696,186.1,186.09,5.37374388]
[1760778482681,3.12257696,186.1,186.07,18.81011253]
[1760778482975,3.12257696,186.1,186.07,19.52011253]
[1760778483379,3.12257696,186.12,186.08,1.24740326]
[1760778483681,3.12257696,186.13,186.09,0.71]
[1760778483980,3.12257696,186.13,186.1,1.24734551]
[1760778484178,3.81257696,186.13,186.1,0.53734551]
[1760778484372,3.12257696,186.11,186.07,18.81011253]
[1760778484559,3.12257696,186.1,186.07,19.52011253]
[1760778484880,3.12257696,186.11,186.08,0.71]
[1760778485381,0.71,186.15,186.09,1.24737438]
[1760778485578,3.12257696,186.15,186.1,0.71]
[1760778485874,3.12257696,186.15,186.11,1.24731664]
[1760778486079,23.59,186.17,186.12,0.71]
[1760778486080,3.12257696,186.16,186.12,0.71]
[1760778486256,3.12257696,186.16,186.13,0.5372589]
[1760778486454,3.83257696,186.16,186.13,0.5372589]
[1760778486678,3.83257696,186.16,186.14,5.37230041]
[1760778486679,0.71,186.15,186.14,5.37230041]
[1760778486880,3.83257696,186.18,186.14,18.80305145]
[1760778487063,3.12257696,186.2,186.15,1.24720118]
[1760778487262,3.12257696,186.2,186.16,0.71]
[1760778487263,0.71,186.2,186.16,0.71]
[1760778487680,3.83257696,186.22,186.17,1.24714347]
[1760778487879,0.71,186.21,186.17,0.53714347]
[1760778488092,22.88,186.26,186.18,0.71]
[1760778488389,3.12257696,186.21,186.17,0.53714347]
[1760778488575,3.84257696,186.21,186.18,5.3711462]
[1760778489265,0.72,186.21,186.18,5.3711462]
[1760778489582,3.84257696,186.21,186.18,18.7990117]
[1760778489955,3.12257696,186.23,186.18,18.7990117]
[1760778490163,3.84257696,186.23,186.19,0.71]
[1760778490462,3.84257696,186.23,186.2,0.53705692]
[1760778490666,3.12257696,186.25,186.21,6.08028086]
[1760778490871,3.84257696,186.26,186.22,0.53699924]
[1760778491071,10.87647521,186.34,186.22,0.53699924]
[1760778491072,3.12257696,186.27,186.22,0.53699924]
[1760778491277,3.84257696,186.28,186.23,0.71]
[1760778491591,3.84257696,186.28,186.24,0.53694158]
[1760778491757,3.12257696,186.26,186.22,0.53699924]
[1760778491963,3.12257696,186.26,186.21,18.79598302]
[1760778491964,3.12257696,186.24,186.21,18.79598302]
[1760778492160,0.72,186.25,186.18,0.99432314]
[1760778492161,3.12257696,186.22,186.18,0.53705692]
[1760778492365,3.12257696,186.19,186.13,17.47609883]
[1760778492565,3.12257696,186.18,186.14,18.80237233]
[1760778492760,3.12257696,186.19,186.14,19.51237233]
[1760778492961,3.12257696,186.2,186.15,1.22697901]
[1760778493159,0.72,186.19,186.15,1.22697901]
[1760778493682,3.84257696,186.19,186.15,0.51697901]
[1760778493880,3.12257696,186.17,186.14,5.37230041]
[1760778494074,3.12257696,186.15,186.11,13.43242418]
[1760778494266,3.12257696,186.15,186.12,6.08287771]
[1760778494470,3.12257696,186.16,186.12,19.51507199]
[1760778494981,3.84257696,186.17,186.13,0.51691915]
[1760778495186,3.84257696,186.17,186.13,1.22691915]
[1760778495563,0.72,186.17,186.13,1.22691915]
[1760778495982,3.12257696,186.18,186.13,1.22691915]
[1760778496188,3.84257696,186.18,186.13,1.22691915]
[1760778496566,3.12257696,186.19,186.14,0.85216157]
[1760778496780,3.12257696,186.2,186.15,20.04924253]
[1760778496967,3.84257696,186.2,186.15,19.33924253]
[1760778497172,3.84257696,186.2,186.15,20.04924253]
[1760778497365,3.12257696,186.2,186.16,0.71]
[1760778497576,3.84257696,186.2,186.16,0.71]
[1760778497981,3.84257696,186.19,186.15,18.80204135]
[1760778498175,3.12257696,186.17,186.15,18.80204135]
[1760778498364,3.84257696,186.16,186.15,18.80204135]
[1760778498566,3.84257696,186.16,186.15,5.37201181]
[1760778498783,3.84257696,186.16,186.13,18.80406167]
[1760778499193,3.12257696,186.14,186.13,5.37258905]
[1760778499665,3.84257696,186.14,186.13,5.37258905]
[1760778500483,3.84257696,186.14,186.11,0.28432314]
[1760778500680,3.84257696,186.14,186.1,18.80646823]
[1760778501284,3.12257696,186.15,186.11,0.71]
[1760778501482,3.84257696,186.15,186.1,18.80646823]
[1760778501682,3.84257696,186.15,186.1,19.51646823]
[1760778501877,23.6,186.18,186.11,1.53163978]
[1760778502194,3.12257696,186.16,186.11,1.53163978]
[1760778502367,3.84257696,186.18,186.12,0.99432314]
[1760778502564,3.84257696,186.18,186.13,19.34132057]
[1760778503090,3.84257696,186.18,186.14,0.71]
[1760778503384,3.84257696,186.18,186.13,20.05132057]
[1760778503781,22.88,186.22,186.14,0.71]
[1760778504111,0.66686022,186.24,186.15,0.53720118]
[1760778504112,3.12257696,186.2,186.15,0.53720118]
[1760778504277,3.84257696,186.21,186.16,0.71]
[1760778504586,3.12257696,186.21,186.18,5.3711462]
[1760778504786,0.72,186.2,186.18,5.3711462]
[1760778505199,0.72,186.19,186.17,5.90851527]
[1760778505492,3.84257696,186.18,186.14,5.90948641]
[1760778506297,3.84257696,186.18,186.14,6.61948641]
[1760778506675,3.84257696,186.18,186.14,6.08225637]
[1760778506903,3.12257696,186.19,186.15,1.24720118]
[1760778507075,3.12257696,186.19,186.15,63.24720118]
[1760778507471,3.12257696,186.21,186.16,0.71]
[1760778507688,3.84257696,186.21,186.16,62.71]
[1760778507897,3.84257696,186.21,186.17,0.53714346]
[1760778508091,3.12257696,186.21,186.17,0.53714346]
[1760778508290,3.84257696,186.2,186.17,0.53714346]
[1760778508705,3.12257696,186.19,186.18,5.3711462]
[1760778508999,3.84257696,186.19,186.18,5.3711462]
[1760778509581,3.84257696,186.19,186.16,67.37143915]
[1760778509890,3.12257696,186.21,186.16,67.37143915]
[1760778509891,3.12257696,186.17,186.16,67.37143915]
[1760778510094,3.84257696,186.17,186.16,67.37143915]
[1760778510301,3.12257696,186.17,186.16,67.37143915]
[1760778511199,3.12257696,186.18,186.16,67.37143915]
[1760778511584,3.84257696,186.19,186.16,80.80074727]
[1760778511791,3.12257696,186.19,186.16,80.80074727]
[1760778512190,3.84257696,186.19,186.16,80.80074727]
[1760778513383,3.12257696,186.19,186.16,81.51074727]
[1760778513579,3.12257696,186.19,186.17,0.53714347]
[1760778514397,3.12257696,186.2,186.17,0.53714347]
[1760778514600,3.84257696,186.2,186.17,62.53714347]
[1760778514907,3.84257696,186.19,186.17,62.53714347]
[1760778515110,0.72,186.19,186.17,62.53714347]
[1760778515311,0.72,186.19,186.18,5.3711462]
[1760778515610,0.72,186.19,186.17,62.53714347]
[1760778515611,0.72,186.18,186.17,67.37136662]
[1760778515796,3.84257696,186.18,186.17,67.37136662]
[1760778517117,3.84257696,186.18,186.17,62.0]
[1760778517491,26.72257696,186.18,186.17,62.0]
[1760778518698,26.72257696,186.18,186.12,5.37287771]
[1760778518906,3.12257696,186.13,186.12,5.37287771]
[1760778519109,3.82257696,186.13,186.12,5.37287771]
[1760778519312,3.12257696,186.13,186.12,5.37287771]
[1760778519703,3.12257696,186.14,186.12,5.37287771]
[1760778520015,3.82257696,186.14,186.12,5.37287771]
[1760778521014,3.82257696,186.14,186.11,18.80543897]
[1760778522410,3.12257696,186.14,186.11,18.80543897]
[1760778523110,3.82257696,186.14,186.11,13.43227257]
[1760778523907,3.12257696,186.14,186.12,0.69]
[1760778524604,3.12257696,186.14,186.12,62.0]
[1760778525309,3.12257696,186.14,186.13,5.37258905]
[1760778526714,3.82257696,186.14,186.12,67.37283494]
[1760778526900,3.12257696,186.13,186.12,67.37283494]
[1760778527100,0.7,186.14,186.12,67.37283494]
[1760778527101,3.82257696,186.14,186.12,67.37283494]
[1760778527799,3.12257696,186.14,186.12,67.37283494]
[1760778532423,3.82257696,186.15,186.12,67.37283494]
[1760778533411,2.69853232,186.15,186.12,67.37283494]
[1760778534808,0.66686022,186.19,186.12,67.37283494]
[1760778534809,2.69853232,186.14,186.12,67.37283494]
[1760778535126,0.7,186.13,186.12,67.37283494]
[1760778536012,2.69853232,186.13,186.12,67.37283494]
[1760778536523,0.66686022,186.17,186.12,67.37283494]
[1760778536726,1.99853232,186.14,186.12,67.37283494]
[1760778537112,2.69853232,186.14,186.12,67.37283494]
[1760778537422,1.99853232,186.14,186.12,67.37283494]
[1760778537622,1.99853232,186.13,186.12,67.37283494]
[1760778539020,2.69853232,186.13,186.12,67.37283494]
[1760778539404,1.99853232,186.13,186.12,67.37283494]
[1760778539604,2.69853232,186.13,186.12,67.37283494]
[1760778540223,2.69853232,186.13,186.12,62.0]
[1760778542212,2.69853232,186.13,186.06,0.53587269]
[1760778542415,1.99853232,186.11,186.06,0.69]
[1760778542623,22.88,186.13,186.06,1.22746103]
[1760778542806,2.69853232,186.15,186.06,1.22746103]
[1760778543008,2.69853232,186.15,186.07,0.69]
[1760778543213,2.69853232,186.15,186.08,0.53740326]
[1760778543524,2.69853232,186.15,186.08,1.22740326]
[1760778543717,0.7,186.14,186.08,1.22740326]
[1760778544112,0.7,186.14,186.09,0.53737437]
[1760778544417,0.7,186.13,186.1,5.37345513]
[1760778548330,2.69853232,186.13,186.1,67.37345513]
[1760778548532,0.7,186.13,186.1,67.37345513]
[1760778548740,1.99853232,186.14,186.1,62.0]
[1760778548741,2.70853232,186.12,186.1,62.0]
[1760778548915,23.54686022,186.18,186.08,5.37379611]
[1760778548916,2.70853232,186.11,186.08,5.37379611]
[1760778549115,1.99853232,186.09,186.06,5.37433616]
[1760778549425,2.70853232,186.08,186.06,5.37433616]
[1760778550030,2.70853232,186.07,186.03,0.2]
[1760778550236,1.99853232,186.04,186.03,0.2]
[1760778550532,0.71,186.07,186.03,0.2]
[1760778550533,1.99853232,186.07,186.04,0.67]
[1760778551033,1.99853232,186.06,186.03,5.57543541]
[1760778551239,1.99853232,186.05,186.03,5.57543541]
[1760778551438,1.99853232,186.04,186.03,5.57543541]
[1760778552334,2.70853232,186.04,186.03,5.57543541]
[1760778553233,1.99853232,186.04,186.03,5.57543541]
[1760778554157,1.99853232,186.06,186.03,5.57543541]
[1760778554435,1.99853232,186.05,186.03,5.57543541]
[1760778554938,0.71,186.06,186.03,5.57543541]
[1760778555236,0.71,186.05,186.03,5.57543541]
[1760778555441,1.99853232,186.06,186.03,6.24543541]
[1760778555626,1.99853232,186.06,186.03,5.57543541]
[1760778555829,2.70853232,186.06,186.03,5.57543541]
[1760778556440,1.99853232,186.05,186.03,5.57543541]
[1760778557233,2.70853232,186.05,186.03,67.57543541]
[1760778557433,2.70853232,186.04,186.03,67.57543541]
[1760778557940,2.70853232,186.04,186.03,0.2]
[1760778558145,33.5826616,186.04,186.03,0.2]
[1760778558321,25.58853232,186.04,186.03,0.2]
[1760778558723,33.5826616,186.04,186.03,0.2]
[1760778559329,34.24952182,186.04,186.03,0.2]
[1760778559624,3.37539254,186.04,186.03,0.2]
[1760778560235,2.70853232,186.04,186.03,0.2]
[1760778560624,0.71,186.04,186.03,0.2]
[1760778560836,2.70853232,186.04,186.03,0.2]
[1760778566537,10.7026616,186.04,186.03,0.2]
[1760778568645,0.71,186.04,186.03,0.2]
[1760778568846,10.7026616,186.04,186.03,0.2]
[1760778569056,33.75647521,186.01,185.95,0.1]
[1760778569349,24.87853232,185.96,185.95,0.1]
[1760778569729,34.40182921,185.96,185.95,0.1]
[1760778570045,42.39595849,185.96,185.95,0.1]
[1760778570226,42.39595849,185.96,185.92,0.1]
[1760778570432,1.99853232,185.93,185.92,0.1]
[1760778570651,2.66539254,185.93,185.92,0.1]
[1760778570842,1.99853232,185.93,185.92,0.1]
[1760778572438,24.87853232,185.93,185.92,0.1]
[1760778576347,1.99853232,185.93,185.92,0.1]
[1760778577627,2.70853232,185.93,185.92,0.1]
[1760778577830,2.70853232,185.93,185.88,62.1]
[1760778577831,33.75647521,185.92,185.88,0.1]
[1760778578033,33.75647521,185.92,185.81,0.67]
[1760778578034,9.9926616,185.89,185.81,0.67]
[1760778578341,1.99853232,185.85,185.81,0.67]
[1760778578856,9.9926616,185.85,185.81,0.67]
[1760778579256,20.35663232,185.88,185.84,0.77]
[1760778579564,1.99853232,185.85,185.84,0.1]
[1760778579935,1.99853232,185.85,185.84,0.77]
[1760778580841,1.99853232,185.85,185.84,0.1]
[1760778581033,34.20952182,185.85,185.84,0.1]
[1760778581232,41.50916825,185.85,185.84,0.1]
[1760778582859,2.66539254,185.85,185.84,0.1]
[1760778583154,23.54686022,185.87,185.84,6.15091017]
[1760778583338,0.66686022,185.88,185.85,0.67]
[1760778583538,24.87853232,185.86,185.84,0.1]
[1760778583746,1.99853232,185.85,185.84,0.1]
[1760778583950,0.67,185.85,185.84,0.1]
[1760778584150,11.32952182,185.85,185.84,0.1]
[1760778584336,3.33539254,185.85,185.84,0.1]
[1760778584839,2.66539254,185.85,185.84,0.1]
[1760778585457,1.99853232,185.85,185.84,0.1]
[1760778585753,1.99853232,185.85,185.84,0.77]
[1760778585963,1.99853232,185.85,185.84,0.1]
[1760778587743,11.32952182,185.85,185.84,0.1]
[1760778589049,0.66686022,185.85,185.84,0.1]
[1760778589353,2.66539254,185.85,185.84,0.1]
[1760778589547,11.32952182,185.85,185.84,0.1]
[1760778590650,34.20952182,185.85,185.84,0.1]
[1760778590861,11.32952182,185.85,185.84,0.1]
[1760778591062,25.54539254,185.85,185.84,0.1]
[1760778591366,22.88,185.85,185.84,0.1]
[1760778591551,24.87853232,185.85,185.84,0.77]
[1760778591862,1.99853232,185.85,185.84,0.77]
[1760778592059,22.88,185.86,185.84,0.77]
[1760778592263,1.99853232,185.85,185.84,0.1]
[1760778592480,1.99853232,185.85,185.84,5.48097287]
[1760778592845,1.99853232,185.85,185.84,6.15097287]
[1760778593063,1.99853232,185.85,185.84,0.77]
[1760778594674,1.99853232,185.85,185.84,6.15097287]
[1760778594859,0.66686022,185.91,185.84,6.15097287]
[1760778594860,1.99853232,185.87,185.84,6.15097287]
[1760778595177,1.99853232,185.88,185.85,0.67]
[1760778595469,3.13172685,185.88,185.85,0.67]
[1760778595854,3.13172685,185.94,185.87,0.14216157]
[1760778596056,3.13172685,185.93,185.88,1.09454364]
[1760778596264,3.13172685,185.91,185.9,5.37923614]
[1760778596575,3.13172685,185.91,185.84,0.1]
[1760778596576,3.80172685,185.91,185.84,0.1]
[1760778596782,3.80172685,185.91,185.84,6.15097287]
[1760778596783,3.13172685,185.85,185.84,6.15097287]
[1760778597449,3.13172685,185.85,185.84,0.1]
[1760778598749,3.80172685,185.85,185.84,0.1]
[1760778598949,6.9334537,185.85,185.84,0.1]
[1760778599955,7.60031392,185.85,185.84,0.1]
[1760778600861,27.34858707,185.85,185.84,0.1]
[1760778601065,4.46858707,185.85,185.84,0.1]
[1760778601257,0.66686022,185.86,185.84,0.1]
[1760778601452,3.13172685,185.85,185.84,0.1]
[1760778601683,3.13172685,185.85,185.84,5.48086855]
[1760778601869,0.66686022,185.89,185.84,5.48086855]
[1760778602168,3.13172685,185.86,185.85,0.72]
[1760778602387,3.13172685,185.86,185.84,5.48086855]
[1760778602556,3.13172685,185.86,185.84,6.20086855]
[1760778602756,3.13172685,185.85,185.84,6.20086855]
[1760778602958,23.54686022,185.89,185.84,6.20086855]
[1760778603158,3.13172685,185.86,185.85,0.72]
[1760778603359,3.13172685,185.89,185.85,1.15498002]
[1760778603562,3.13172685,185.92,185.86,0.72]
[1760778603764,3.13172685,185.91,185.87,0.43493321]
[1760778603957,3.13172685,185.92,185.88,0.72]
[1760778604281,3.13172685,185.92,185.87,0.43493321]
[1760778604282,3.13172685,185.91,185.89,0.72]
[1760778604482,3.13172685,185.91,185.9,5.37923614]
[1760778604985,3.13172685,185.92,185.9,5.37923614]
[1760778605467,3.13172685,185.92,185.9,6.09923614]
[1760778606078,3.13172685,185.91,185.9,6.09923614]
[1760778606274,3.13172685,185.92,185.9,6.09923614]
[1760778606587,3.13172685,185.94,185.91,0.72]
[1760778606955,3.13172685,185.94,185.92,0.72]
[1760778607666,0.66686022,186.02,185.94,10.87647521]
[1760778607869,3.13172685,186.02,185.95,1.43904606]
[1760778608089,0.66686022,186.07,185.97,10.87647521]
[1760778608281,3.13172685,186.02,185.99,5.37663315]
[1760778608579,3.13172685,186.02,186.0,0.67]
[1760778609286,0.68,186.05,186.0,0.43534303]
[1760778609457,7.68783892,186.04,186.01,0.67]
[1760778609655,1.34686022,186.07,186.01,0.67]
[1760778609884,7.68783892,186.05,186.01,0.67]
[1760778610175,7.68783892,186.08,186.02,1.10529622]
[1760778610374,7.68783892,186.08,186.03,5.37547707]
[1760778610583,7.68783892,186.07,186.04,0.67]
[1760778610754,22.88,186.1,185.99,0.28432314]
[1760778610755,7.68783892,186.05,185.99,14.11111988]
[1760778610959,7.68783892,186.0,185.95,5.37778972]
[1760778611173,7.68783892,185.99,185.96,0.67]
[1760778611381,0.68,186.02,185.95,5.37778972]
[1760778611382,7.68783892,185.97,185.95,5.37778972]
[1760778611561,7.68783892,185.97,185.95,6.04778972]
[1760778611962,7.68783892,185.96,185.94,5.37805161]
[1760778612161,7.68783892,185.95,185.92,5.37838834]
[1760778612364,7.68783892,185.94,185.92,5.37838834]
[1760778612563,7.68783892,185.97,185.93,0.67]
[1760778612862,7.68783892,185.98,185.93,1.10523895]
[1760778613072,7.68783892,185.98,185.92,18.82503205]
[1760778613073,7.68783892,185.97,185.92,18.82503205]
[1760778613283,7.68783892,185.97,185.93,0.67]
[1760778613483,7.68783892,185.97,185.94,0.67]
[1760778613671,7.68783892,185.98,185.95,0.67]
[1760778613865,7.68783892,186.0,185.95,1.10512205]
[1760778614066,7.68783892,186.0,185.96,0.67]
[1760778614265,7.68783892,186.0,185.97,0.67]
[1760778614472,0.68,186.03,185.97,0.67]
[1760778614473,7.68783892,186.02,185.98,0.67]
[1760778614969,7.68783892,186.01,185.98,0.67]
[1760778615291,7.68783892,185.99,185.96,18.82125187]
[1760778615590,7.68783892,186.0,185.96,19.49125187]
[1760778615793,0.68,186.08,185.98,10.87647521]
[1760778615975,0.68,186.08,185.99,1.24709664]
[1760778615976,7.68783892,186.06,185.99,1.24709664]
[1760778616159,7.68783892,186.04,185.99,1.10493507]
[1760778616366,8.36783892,186.03,185.99,5.37663315]
[1760778616594,7.68783892,186.03,186.0,0.67]
[1760778616764,7.68783892,186.04,186.0,0.67]
[1760778616971,0.68,186.08,186.01,0.67]
[1760778617298,7.68783892,186.07,186.01,0.67]
[1760778617586,7.68783892,186.07,186.01,62.67]
[1760778617768,7.68783892,186.06,186.01,62.67]
[1760778617970,7.68783892,186.05,186.02,0.67]
[1760778618167,7.68783892,186.04,186.01,62.0]
[1760778618466,8.36783892,186.04,185.99,19.92310436]
[1760778619490,0.68,186.03,185.99,19.25310436]
[1760778619667,8.36783892,186.03,185.99,18.81821603]
[1760778620186,7.68783892,186.05,186.0,0.67]
[1760778620371,8.36783892,186.05,186.0,0.67]
[1760778620565,8.36783892,186.05,185.99,18.81821603]
[1760778620566,7.68783892,186.05,185.99,18.81821603]
[1760778620768,7.68783892,186.04,185.99,18.81821603]
[1760778620992,8.36783892,186.04,185.99,19.48821603]
[1760778621295,0.68,186.04,185.99,19.48821603]
[1760778621486,0.68,186.04,186.0,0.67]
[1760778621677,7.68783892,186.06,186.01,19.48619267]
[1760778621877,7.68783892,186.06,186.02,0.67]
[1760778622267,7.68783892,186.06,186.02,62.67]
[1760778622468,7.68783892,186.05,186.02,62.0]
[1760778622966,7.68783892,186.04,186.02,62.0]
[1760778623172,8.36783892,186.04,186.02,62.0]
[1760778623780,8.36783892,186.04,186.02,67.37570835]
[1760778624770,7.68783892,186.05,186.02,67.37570835]
[1760778624970,7.68783892,186.06,186.02,5.37570835]
[1760778625173,9.03469914,186.06,186.02,5.37570835]
[1760778625590,7.68783892,186.05,186.02,5.37570835]
[1760778625780,8.36783892,186.05,186.02,5.37570835]
[1760778625981,8.36783892,186.05,186.01,5.37605505]
[1760778627000,0.68,186.05,186.01,6.04605505]
[1760778627479,0.68,186.05,186.01,19.48619267]
[1760778627864,7.68783892,186.07,186.03,18.81416975]
[1760778628063,7.68783892,186.08,186.03,80.81416975]
[1760778628398,8.36783892,186.08,186.04,0.67]
[1760778628772,8.36783892,186.08,186.03,18.81416975]
[1760778628995,0.68,186.07,186.03,19.48416975]
[1760778629370,8.36783892,186.07,186.03,19.48416975]
[1760778629786,0.68,186.07,186.03,19.48416975]
[1760778631071,0.68,186.09,186.03,19.48416975]
[1760778631272,7.68783892,186.08,186.03,19.48416975]
[1760778631471,0.68,186.08,186.03,19.48416975]
[1760778631775,8.36783892,186.08,186.03,19.48416975]
[1760778632386,8.36783892,186.08,186.03,13.43869268]
[1760778632584,8.36783892,186.08,186.03,14.10869268]
[1760778632992,7.68783892,186.08,186.03,14.10869268]
[1760778633191,8.36783892,186.08,186.03,13.43869268]
[1760778633381,8.36783892,186.08,186.04,0.67]
[1760778633696,0.68,186.08,186.05,5.37489922]
[1760778633887,8.36783892,186.08,186.05,5.37489922]
[1760778634082,8.36783892,186.08,186.05,67.37489922]
[1760778634893,7.68783892,186.07,186.05,67.37489922]
[1760778636669,8.36783892,186.08,186.05,67.37489922]
[1760778637073,7.68783892,186.09,186.05,68.04489922]
[1760778637297,23.74686022,186.13,186.06,0.67]
[1760778637488,7.68783892,186.1,186.06,62.67]
[1760778637684,8.36783892,186.1,186.06,62.0]
[1760778637893,23.74686022,186.13,186.06,62.0]
[1760778637894,7.68783892,186.08,186.06,62.0]
[1760778638098,8.34783892,186.08,186.05,67.37489922]
[1760778638472,7.68783892,186.08,186.05,67.37489922]
[1760778638673,23.74686022,186.13,186.05,62.0]
[1760778638674,7.68783892,186.06,186.05,62.0]
[1760778638894,8.34783892,186.06,186.05,62.0]
[1760778639797,8.34783892,186.06,186.02,5.37562288]
[1760778639998,7.68783892,186.04,186.02,5.37562288]
[1760778641108,7.68783892,186.07,186.03,0.69]
[1760778641996,8.34783892,186.07,186.03,0.69]
[1760778642204,9.01469914,186.07,186.03,0.69]
[1760778642705,7.68783892,186.06,186.03,0.69]
[1760778643079,7.68783892,186.06,186.02,18.81503799]
[1760778643080,8.34783892,186.06,186.02,18.81503799]
[1760778643384,7.68783892,186.05,186.02,6.06562288]
[1760778643798,7.68783892,186.03,186.02,5.37562288]
[1760778644702,7.68783892,186.04,186.02,5.37562288]
[1760778645106,7.68783892,186.04,186.0,18.81710872]
[1760778645285,7.68783892,186.04,186.0,19.50710872]
[1760778646184,7.68783892,186.05,186.01,0.69]
[1760778646378,0.66686022,186.08,186.01,0.69]
[1760778646681,7.68783892,186.06,186.01,0.69]
[1760778647003,7.68783892,186.05,186.01,0.69]
[1760778647198,8.34783892,186.05,186.01,0.69]
[1760778647401,7.68783892,186.03,186.0,13.44076464]
[1760778648097,8.34783892,186.02,185.99,5.37663315]
[1760778648283,8.34783892,186.02,185.99,67.37663315]
[1760778649002,0.66,186.02,185.99,80.81821603]
[1760778649387,7.68783892,186.03,185.99,80.81821603]
[1760778649582,8.34783892,186.03,185.99,80.81821603]
[1760778649785,8.34783892,186.03,185.99,81.50821603]
[1760778651302,7.68783892,186.04,185.99,80.81821603]
[1760778651499,0.66,186.03,185.99,81.50821603]
[1760778651698,3.12639164,186.04,185.99,81.50821603]
[1760778651901,3.12639164,186.04,186.0,0.69]
[1760778652204,3.12639164,186.04,186.01,0.69]
[1760778652607,3.78639164,186.04,185.99,81.50821603]
[1760778652800,3.12639164,186.04,186.01,5.37605505]
[1760778653307,3.12639164,186.05,186.01,5.37605505]
[1760778653501,3.12639164,186.06,186.02,0.69]
[1760778653696,3.12639164,186.06,186.03,0.69]
[1760778654089,3.12639164,186.07,186.04,0.69]
[1760778654493,0.66686022,186.08,186.05,0.69]
[1760778654693,3.12639164,186.06,186.02,62.0]
[1760778654886,3.78639164,186.05,186.03,5.37547707]
[1760778655094,3.12639164,186.04,186.03,5.37547707]
[1760778655603,2.00092302,186.04,186.03,5.37547707]
[1760778656720,2.00092302,186.05,186.03,5.37547707]
[1760778657198,0.66,186.07,186.03,5.37547707]
[1760778657199,2.00092302,186.06,186.03,5.37547707]
[1760778657402,2.66092302,186.06,186.03,5.37547707]
[1760778657711,2.66092302,186.06,186.03,67.37547707]
[1760778657888,2.00092302,186.06,186.03,68.06547707]
[1760778659405,2.00092302,186.06,186.04,0.69]
[1760778659803,2.00092302,186.07,186.05,0.69]
[1760778660209,2.00092302,186.07,186.04,62.0]
[1760778660393,2.00092302,186.06,186.04,62.0]
[1760778660908,22.88,186.09,186.04,62.0]
[1760778660909,2.00092302,186.05,186.04,62.0]
[1760778661208,2.66092302,186.05,186.04,62.0]
[1760778663609,2.66092302,186.05,186.03,67.37526236]
[1760778663809,2.00092302,186.04,186.03,67.37526236]
[1760778664013,2.66092302,186.05,186.03,67.37526236]
[1760778664196,2.00092302,186.04,186.03,67.37526236]
[1760778664911,2.00092302,186.05,186.03,67.37526236]
[1760778665721,2.00092302,186.05,186.03,5.37526236]
[1760778666124,2.71092302,186.05,186.03,5.37526236]
[1760778666819,2.00092302,186.05,186.03,5.37526236]
[1760778667117,2.00092302,186.05,186.01,76.13003161]
[1760778667118,2.00092302,186.05,186.02,5.37576604]
[1760778667317,2.00092302,186.05,186.02,6.06576604]